[Event "22nd ECCC Women 2017"]
[Site "Antalya"]
[Date "2017.10.09"]
[Round "1"]
[White "Kovanova, Baira"]
[Black "Neuhauser, Salome"]
[Result "1-0"]
[ECO "A48"]
[WhiteElo "2371"]
[BlackElo "2140"]
[Annotator "ChessBase"]
[PlyCount "57"]
[EventType "team-tourn"]
[EventCountry "TUR"]
[WhiteTeam "UGRA"]
[BlackTeam "Mulhouse Philidor"]
[TimeControl "40/5400+30:1800+30"]

1. d4 Nf6 2. Nf3 g6 3. Bf4 Bg7 {[%emt 0:01:00]} 4. e3 {[%emt 0:01:00]} O-O {[%emt 0:00:30]} 5. h3 {[%emt 0:00:30]} d6 {[%emt 0:00:30]} 6. Be2 {[%emt 0:00:30]} Nbd7 {[%emt 0:00:30]} 7. O-O {[%emt 0:00:30]} Qe8 {[%emt 0:00:00]} 8. c4 {[%emt 0:00:00]} c5 {[%emt 0:13:00]} 9. Nc3 {[%emt 0:00:00]} b6 {[%emt 0:01:30]} 10. d5 {[%emt 0:00:30]} Nb8 {[%emt 0:06:30]} 11. e4 {[%emt 0:06:30]} Na6 {[%emt 0:03:30]} 12. Bh2 {[%emt 0:00:30]} Qd8 {[%emt 0:15:30]} 13. e5 {[%emt 0:05:30]} Ne8 {[%emt 0:01:30]} 14. Re1 {[%emt 0:00:30]} Nac7 {[%emt 0:04:30]} 15. Bd3 {[%emt 0:06:30]} Rb8 {[%emt 0:08:30]} 16. Bf4 {[%emt 0:02:30]} a6 {[%emt 0:08:30]} 17. a4 {[%emt 0:02:30]} Bb7 {[%emt 0:07:30]} 18. Bf1 {[%emt 0:03:30]} dxe5 {[%emt 0:20:05]} 19. Nxe5 {[%emt 0:00:30]} b5 {[%emt 0:00:47]} 20. axb5 {[%emt 0:02:30]} axb5 {[%emt 0:00:24]} 21. cxb5 {[%emt 0:01:30]} Ra8 {[%emt 0:04:37]} 22. Rxa8 {[%emt 0:01:30]} Bxa8 {[%emt 0:00:09]} 23. Nc6 {[%emt 0:00:30]} Bxc6 {[%emt 0:00:31]} 24. dxc6 {[%emt 0:00:00]} Nd6 {[%emt 0:00:50]} 25. Rxe7 {[%emt 0:05:00]} Bxc3 {[%emt 0:00:51]} 26. Qxd6 {[%emt 0:01:30]} Ne6 {[%emt 0:01:36]} 27. bxc3 {[%emt 0:02:30]} Nxf4 {[%emt 0:00:20]} 28. Qxd8 {[%emt 0:00:30]} Rxd8 {[%emt 0:00:01]} 29. c7 {[%emt 0:00:00]} 1-0

[Event "22nd ECCC Women 2017"]
[Site "Antalya"]
[Date "2017.10.09"]
[Round "1"]
[White "Fataliyeva, Ulviyya"]
[Black "Klinova, Masha"]
[Result "1-0"]
[ECO "B07"]
[WhiteElo "2348"]
[BlackElo "2289"]
[Annotator "ChessBase"]
[PlyCount "52"]
[EventType "team-tourn"]
[EventCountry "TUR"]
[WhiteTeam "Odlar Yurdu"]
[BlackTeam "Beer Sheva"]
[TimeControl "40/5400+30:1800+30"]

1. e4 {[%emt 0:00:30]} d6 {[%emt 0:01:00]} 2. d4 {[%emt 0:00:30]} Nf6 {[%emt 0:00:30]} 3. Nc3 {[%emt 0:00:30]} g6 {[%emt 0:00:30]} 4. Be3 {[%emt 0:00:00]} a6 {[%emt 0:00:00]} 5. h3 {[%emt 0:00:00]} Bg7 {[%emt 0:02:00]} 6. f4 {[%emt 0:00:00]} O-O {[%emt 0:00:30]} 7. Qf3 {[%emt 0:00:00]} Nc6 {[%emt 0:05:30]} 8. O-O-O {[%emt 0:05:30]} d5 {[%emt 0:17:30]} 9. e5 {[%emt 0:06:30]} Ne4 {[%emt 0:02:30]} 10. Nxe4 {[%emt 0:01:30]} dxe4 {[%emt 0:00:30]} 11. Qe2 {[%emt 0:05:30]} b5 {[%emt 0:06:30]} 12. d5 {[%emt 0:02:30]} Na5 {[%emt 0:04:30]} 13. Bd2 {[%emt 0:08:30]} Nc4 {[%emt 0:30:30]} 14. Qxe4 {[%emt 0:00:30]} Nxd2 {[%emt 0:02:30]} 15. Rxd2 {[%emt 0:00:30]} Bb7 {[%emt 0:00:30]} 16. Nf3 {[%emt 0:17:30]} e6 {[%emt 0:01:30]} 17. c4 {[%emt 0:04:30]} Qe7 {[%emt 0:06:27]} 18. Be2 {[%emt 0:03:30]} Rfd8 {[%emt 0:10:22]} 19. Rhd1 {[%emt 0:02:30]} Bf8 {[%emt 0:00:08]} 20. Qc2 {[%emt 0:11:30]} exd5 {[%emt 0:02:36]} 21. cxd5 {[%emt 0:00:30]} Rd7 {[%emt 0:00:43]} 22. Ng5 {[%emt 0:01:30]} Rad8 {[%emt 0:01:10]} 23. Ne4 {[%emt 0:05:30]} Bg7 {[%emt 0:01:36]} 24. Nc5 {[%emt 0:00:30]} Bc8 {[%emt 0:00:27]} 25. Nxd7 {[%emt 0:00:30]} Rxd7 {[%emt 0:00:42]} 26. d6 {[%emt 0:01:30]} cxd6 {[%emt 0:00:23]} 1-0

[Event "22nd ECCC Women 2017"]
[Site "Antalya"]
[Date "2017.10.09"]
[Round "1"]
[White "Hojjatova, Aydan"]
[Black "Ovechkin, Lilia"]
[Result "1-0"]
[ECO "B04"]
[WhiteElo "2341"]
[BlackElo "1779"]
[Annotator "ChessBase"]
[PlyCount "73"]
[EventType "team-tourn"]
[EventCountry "TUR"]
[WhiteTeam "Odlar Yurdu"]
[BlackTeam "Beer Sheva"]
[TimeControl "40/5400+30:1800+30"]

1. e4 {[%emt 0:00:30]} Nf6 {[%emt 0:01:00]} 2. e5 {[%emt 0:00:30]} Nd5 {[%emt 0:00:30]} 3. d4 {[%emt 0:00:00]} d6 {[%emt 0:00:30]} 4. Nf3 {[%emt 0:00:00]} Nb6 {[%emt 0:00:30]} 5. Be2 {[%emt 0:13:30]} g6 {[%emt 0:00:30]} 6. O-O {[%emt 0:02:30]} Bg7 {[%emt 0:00:30]} 7. exd6 {[%emt 0:02:30]} cxd6 {[%emt 0:00:30]} 8. h3 {[%emt 0:01:30]} O-O {[%emt 0:00:30]} 9. c4 {[%emt 0:01:30]} Nc6 {[%emt 0:02:30]} 10. Nc3 {[%emt 0:01:30]} Bf5 {[%emt 0:02:30]} 11. Be3 {[%emt 0:01:30]} d5 {[%emt 0:02:30]} 12. c5 {[%emt 0:04:30]} Nc4 {[%emt 0:01:30]} 13. Bc1 {[%emt 0:29:30]} h6 {[%emt 0:33:30]} 14. b3 {[%emt 0:03:30]} N4a5 {[%emt 0:01:30]} 15. Be3 {[%emt 0:01:30]} g5 {[%emt 0:09:30]} 16. Qd2 {[%emt 0:09:30]} e6 {[%emt 0:01:30]} 17. Rad1 {[%emt 0:01:30]} a6 {[%emt 0:01:30]} 18. Nh2 {[%emt 0:03:30]} Ne7 {[%emt 0:04:30]} 19. f4 {[%emt 0:01:06]} f6 {[%emt 0:02:30]} 20. fxg5 {[%emt 0:02:56]} hxg5 {[%emt 0:02:30]} 21. Bh5 {[%emt 0:02:29]} Bg6 {[%emt 0:06:30]} 22. Bf3 {[%emt 0:02:23]} Nac6 {[%emt 0:01:30]} 23. Ne2 {[%emt 0:02:45]} Nf5 {[%emt 0:03:30]} 24. Bf2 {[%emt 0:00:24]} Kf7 {[%emt 0:01:45]} 25. Ng4 {[%emt 0:01:16]} Rh8 {[%emt 0:00:55]} 26. Rde1 {[%emt 0:02:00]} Nh4 {[%emt 0:02:37]} 27. Be3 {[%emt 0:01:33]} Nxf3+ {[%emt 0:04:00]} 28. Rxf3 {[%emt 0:00:02]} Bh5 {[%emt 0:02:11]} 29. Bxg5 {[%emt 0:01:17]} Bxg4 {[%emt 0:00:57]} 30. hxg4 {[%emt 0:00:08]} Qc7 {[%emt 0:00:57]} 31. Bf4 {[%emt 0:01:23]} Qa5 {[%emt 0:01:42]} 32. Qxa5 {[%emt 0:04:17]} Nxa5 {[%emt 0:00:09]} 33. Bd6 {[%emt 0:00:11]} Rh4 {[%emt 0:03:52]} 34. Nf4 {[%emt 0:02:29]} Re8 {[%emt 0:04:01]} 35. Rfe3 {[%emt 0:00:57]} Rxg4 {[%emt 0:01:58]} 36. Nxe6 {[%emt 0:00:34]} Rg8 {[%emt 0:00:54]} 37. Nf4 {[%emt 0:00:30]} 1-0

[Event "22nd ECCC Women 2017"]
[Site "Antalya"]
[Date "2017.10.09"]
[Round "1"]
[White "Zaiatz, Elena"]
[Black "Celik, Eda"]
[Result "1-0"]
[ECO "D02"]
[WhiteElo "2334"]
[BlackElo "1880"]
[Annotator "ChessBase"]
[PlyCount "51"]
[EventType "team-tourn"]
[EventCountry "TUR"]
[SourceTitle "playchess.com"]
[Source "ChessBase"]
[SourceQuality "1"]
[WhiteTeam "Bossa Nova"]
[BlackTeam "Aegean"]
[TimeControl "40/5400+30:1800+30"]

1. Nf3 {[%emt 0:00:30]} d5 {[%emt 0:01:00]} 2. g3 {[%emt 0:00:00]} c6 {[%emt 0:02:30]} 3. Bg2 {[%emt 0:00:00]} Bg4 {[%emt 0:00:30]} 4. O-O {[%emt 0:00:30]} Nf6 {[%emt 0:00:30]} 5. d4 {[%emt 0:02:30]} e6 {[%emt 0:02:30]} 6. Nbd2 {[%emt 0:00:30]} Nbd7 {[%emt 0:01:30]} 7. Re1 {[%emt 0:00:30]} Be7 {[%emt 0:10:30]} 8. c3 {[%emt 0:02:30]} O-O {[%emt 0:00:30]} 9. e4 {[%emt 0:03:30]} dxe4 {[%emt 0:02:30]} 10. Nxe4 {[%emt 0:00:00]} Nxe4 {[%emt 0:11:30]} 11. Rxe4 {[%emt 0:00:00]} Nf6 {[%emt 0:03:30]} 12. Re1 {[%emt 0:00:30]} Qb6 {[%emt 0:09:30]} 13. h3 {[%emt 0:06:30]} Bh5 {[%emt 0:02:30]} 14. g4 {[%emt 0:01:30]} Bg6 {[%emt 0:00:30]} 15. Ne5 {[%emt 0:00:00]} Rfd8 {[%emt 0:04:30]} 16. h4 {[%emt 0:01:00]} h6 {[%emt 0:12:30]} 17. Nxg6 {[%emt 0:02:30]} fxg6 {[%emt 0:00:30]} 18. Rxe6 {[%emt 0:00:30]} Qc7 {[%emt 0:06:30]} 19. g5 {[%emt 0:05:30]} hxg5 {[%emt 0:02:30]} 20. Bxg5 {[%emt 0:04:30]} Bd6 {[%emt 0:12:52]} 21. Bxf6 {[%emt 0:03:30]} gxf6 {[%emt 0:00:05]} 22. Qf3 {[%emt 0:05:30]} Be7 {[%emt 0:02:33]} 23. Rae1 {[%emt 0:00:30]} Rd7 {[%emt 0:00:36]} 24. h5 {[%emt 0:07:30]} gxh5 {[%emt 0:03:06]} 25. Qxh5 {[%emt 0:00:30]} Kg7 {[%emt 0:00:49]} 26. R1e4 {[%emt 0:00:30]} 1-0

[Event "22nd ECCC Women 2017"]
[Site "Antalya"]
[Date "2017.10.09"]
[Round "1"]
[White "Sandu, Mihaela"]
[Black "Ince, Safiye Oyku"]
[Result "1-0"]
[ECO "B85"]
[WhiteElo "2278"]
[BlackElo "1861"]
[Annotator "ChessBase"]
[PlyCount "79"]
[EventType "team-tourn"]
[EventCountry "TUR"]
[SourceTitle "playchess.com"]
[Source "ChessBase"]
[SourceQuality "1"]
[WhiteTeam "Timisoara"]
[BlackTeam "Mediterranean"]
[TimeControl "40/5400+30:1800+30"]

1. e4 {[%emt 0:00:30]} c5 {[%emt 0:01:00]} 2. Nf3 {[%emt 0:00:30]} e6 {[%emt 0:00:30]} 3. d4 {[%emt 0:00:30]} cxd4 {[%emt 0:00:30]} 4. Nxd4 {[%emt 0:00:30]} Nc6 {[%emt 0:00:00]} 5. Nc3 {[%emt 0:00:00]} Qc7 {[%emt 0:00:00]} 6. f4 {[%emt 0:00:00]} d6 {[%emt 0:00:30]} 7. Be3 {[%emt 0:03:30]} Nf6 {[%emt 0:02:30]} 8. Be2 {[%emt 0:09:30]} Be7 {[%emt 0:00:30]} 9. O-O {[%emt 0:00:30]} O-O {[%emt 0:00:30]} 10. Kh1 {[%emt 0:00:30]} Nxd4 {[%emt 0:00:30]} 11. Bxd4 {[%emt 0:04:30]} e5 {[%emt 0:00:30]} 12. Be3 {[%emt 0:02:30]} exf4 {[%emt 0:00:30]} 13. Bxf4 {[%emt 0:11:30]} Be6 {[%emt 0:18:30]} 14. Qd3 {[%emt 0:09:30]} a6 {[%emt 0:09:30]} 15. Qg3 {[%emt 0:02:30]} Rfd8 {[%emt 0:07:30]} 16. Rad1 {[%emt 0:06:30]} Ne8 {[%emt 0:13:30]} 17. e5 {[%emt 0:11:30]} dxe5 {[%emt 0:06:30]} 18. Bxe5 {[%emt 0:00:30]} Qb6 {[%emt 0:00:00]} 19. Bd3 {[%emt 0:05:30]} Rac8 {[%emt 0:15:00]} 20. Ne4 {[%emt 0:00:30]} Bc4 {[%emt 0:01:30]} 21. Bxc4 {[%emt 0:08:30]} Rxc4 {[%emt 0:00:30]} 22. Rxd8 {[%emt 0:00:30]} Qxd8 {[%emt 0:01:55]} 23. Qf3 {[%emt 0:02:15]} Qd5 {[%emt 0:01:13]} 24. Nc3 {[%emt 0:04:18]} Qxf3 {[%emt 0:03:12]} 25. gxf3 {[%emt 0:00:18]} Bf6 {[%emt 0:00:32]} 26. Bxf6 {[%emt 0:05:00]} Nxf6 {[%emt 0:00:30]} 27. Rd1 {[%emt 0:00:02]} Rc8 {[%emt 0:01:55]} 28. Ne2 {[%emt 0:05:28]} Kf8 {[%emt 0:00:35]} 29. c3 {[%emt 0:00:06]} Re8 {[%emt 0:07:20]} 30. Rd2 {[%emt 0:03:10]} Ke7 {[%emt 0:03:51]} 31. Kg1 {[%emt 0:00:16]} Rd8 {[%emt 0:02:02]} 32. Nd4 {[%emt 0:00:09]} g6 {[%emt 0:00:00]} 33. Kf2 {[%emt 0:00:40]} Nd7 {[%emt 0:00:35]} 34. c4 {[%emt 0:02:15]} Rc8 {[%emt 0:00:35]} 35. b3 {[%emt 0:00:11]} Rc5 {[%emt 0:00:39]} 36. Re2+ {[%emt 0:01:21]} Re5 {[%emt 0:00:44]} 37. Rd2 {[%emt 0:00:38]} Rc5 {[%emt 0:00:05]} 38. Re2+ {[%emt 0:00:23]} Re5 {[%emt 0:00:30]} 39. Rc2 {[%emt 0:00:00]} Nc5 {[%emt 0:02:24]} 40. Rd2 {[%emt 0:00:00]} 1-0

[Event "22nd ECCC Women 2017"]
[Site "Antalya"]
[Date "2017.10.09"]
[Round "1"]
[White "Dragomirescu, Angela"]
[Black "Ozbek, Busra"]
[Result "1-0"]
[ECO "A24"]
[WhiteElo "2231"]
[BlackElo "1850"]
[Annotator "ChessBase"]
[PlyCount "83"]
[EventType "team-tourn"]
[EventCountry "TUR"]
[WhiteTeam "Timisoara"]
[BlackTeam "Mediterranean"]
[TimeControl "40/5400+30:1800+30"]

1. c4 {[%emt 0:00:30]} g6 {[%emt 0:01:00]} 2. g3 {[%emt 0:00:30]} Bg7 {[%emt 0:00:30]} 3. Bg2 {[%emt 0:00:00]} Nf6 {[%emt 0:02:30]} 4. Nc3 {[%emt 0:00:00]} d6 {[%emt 0:00:30]} 5. e4 {[%emt 0:00:30]} Nbd7 {[%emt 0:04:30]} 6. d3 {[%emt 0:02:30]} e5 {[%emt 0:07:30]} 7. Nge2 {[%emt 0:00:30]} O-O {[%emt 0:01:30]} 8. O-O {[%emt 0:01:30]} c6 {[%emt 0:07:30]} 9. h3 {[%emt 0:11:30]} Nc5 {[%emt 0:03:30]} 10. Be3 {[%emt 0:03:30]} Ne6 {[%emt 0:06:30]} 11. f4 {[%emt 0:05:30]} Nd7 {[%emt 0:04:30]} 12. f5 {[%emt 0:08:30]} Nd4 {[%emt 0:04:30]} 13. g4 {[%emt 0:04:30]} Nc5 {[%emt 0:08:30]} 14. b4 {[%emt 0:15:30]} Na6 {[%emt 0:00:30]} 15. Rb1 {[%emt 0:01:30]} Nc7 {[%emt 0:11:30]} 16. Qd2 {[%emt 0:04:30]} Bd7 {[%emt 0:18:48]} 17. Bg5 {[%emt 0:04:30]} f6 {[%emt 0:01:01]} 18. Be3 {[%emt 0:00:30]} Nxe2+ {[%emt 0:00:27]} 19. Qxe2 {[%emt 0:01:30]} Be8 {[%emt 0:04:30]} 20. Qf2 {[%emt 0:01:30]} Bf7 {[%emt 0:03:14]} 21. Bxa7 {[%emt 0:06:30]} d5 {[%emt 0:02:04]} 22. exd5 {[%emt 0:15:46]} cxd5 {[%emt 0:02:41]} 23. Bb6 {[%emt 0:00:43]} dxc4 {[%emt 0:03:12]} 24. dxc4 {[%emt 0:01:56]} Bxc4 {[%emt 0:00:26]} 25. Rfd1 {[%emt 0:00:24]} Qc8 {[%emt 0:00:15]} 26. Qc5 {[%emt 0:04:15]} Na6 {[%emt 0:01:01]} 27. Qxc8 {[%emt 0:01:16]} Raxc8 {[%emt 0:00:04]} 28. Bxb7 {[%emt 0:00:01]} Rb8 {[%emt 0:00:51]} 29. Bd5+ {[%emt 0:02:11]} Bxd5 {[%emt 0:01:00]} 30. Nxd5 {[%emt 0:00:03]} Bh6 {[%emt 0:00:11]} 31. Kf2 {[%emt 0:02:27]} Kf7 {[%emt 0:00:37]} 32. b5 {[%emt 0:00:12]} Rfc8 {[%emt 0:00:26]} 33. bxa6 {[%emt 0:00:38]} Rc2+ {[%emt 0:00:03]} 34. Kf1 {[%emt 0:00:46]} Rxa2 {[%emt 0:00:49]} 35. a7 {[%emt 0:00:46]} Rb7 {[%emt 0:00:21]} 36. Nc7 {[%emt 0:00:32]} Bf4 {[%emt 0:00:54]} 37. a8=Q {[%emt 0:00:50]} Rxa8 {[%emt 0:00:07]} 38. Nxa8 {[%emt 0:00:00]} Re7 {[%emt 0:00:26]} 39. Bc5 {[%emt 0:00:26]} Re8 {[%emt 0:00:05]} 40. Rd7+ {[%emt 0:00:23]} Kg8 {[%emt 0:00:57]} 41. Nc7 {[%emt 0:01:25]} Rc8 {[%emt 0:00:30]} 42. Ne6 {[%emt 0:00:30]} 1-0

[Event "22nd ECCC Women 2017"]
[Site "Antalya"]
[Date "2017.10.08"]
[Round "1"]
[White "Ozbay, Ece"]
[Black "Savina, Anastasia"]
[Result "0-1"]
[ECO "B07"]
[WhiteElo "1998"]
[BlackElo "2350"]
[Annotator "NA"]
[PlyCount "60"]
[EventType "team-tourn"]
[EventCountry "TUR"]
[SourceTitle "playchess.com"]
[Source "ChessBase"]
[SourceQuality "1"]
[WhiteTeam "Marmara"]
[BlackTeam "Legacy Square Capital"]
[TimeControl "40/5400+30:1800+30"]

1. e4 d6 {[%emt 0:01:00]} 2. d4 {[%emt 0:01:00]} Nf6 {[%emt 0:00:30]} 3. Nc3 {[%emt 0:00:30]} e5 {[%emt 0:00:00]} 4. dxe5 {[%emt 0:01:30]} dxe5 {[%emt 0:00:00]} 5. Qxd8+ {[%emt 0:00:30]} Kxd8 {[%emt 0:00:00]} 6. Bg5 {[%emt 0:10:30]} Be6 {[%emt 0:00:00]} 7. O-O-O+ {[%emt 0:01:30]} Kc8 {[%emt 0:01:30]} 8. Nf3 {[%emt 0:25:30]} Nbd7 {[%emt 0:01:30]} 9. Bh4 {[%emt 0:01:30]} h6 {[%emt 0:01:30]} 10. Bb5 {[%emt 0:10:30]} c6 {[%emt 0:06:30]} 11. Be2 {[%emt 0:00:00]} Bb4 {[%emt 0:03:30]} 12. Bxf6 {[%emt 0:05:00]} Nxf6 {[%emt 0:07:30]} 13. Bd3 $17 {[%emt 0:03:30]} (13. Nxe5 $15 Bxc3 14. bxc3) 13... Nd7 {[%emt 0:04:30]} 14. Kd2 {[%emt 0:05:30]} Kc7 {[%emt 0:04:30]} 15. a3 {[%emt 0:00:30]} Be7 {[%emt 0:01:30]} 16. b4 {[%emt 0:02:30]} g5 {[%emt 0:06:30]} 17. h3 {[%emt 0:01:30]} h5 {[%emt 0:01:30]} 18. Ng1 {[%emt 0:01:30]} a5 {[%emt 0:07:30]} 19. Rb1 {[%emt 0:00:30]} Nb6 {[%emt 0:05:30]} 20. Nge2 {[%emt 0:06:30]} Rhd8 {[%emt 0:03:30]} 21. Ke3 {[%emt 0:02:30]} Nc4+ {[%emt 0:17:30]} 22. Bxc4 {[%emt 0:00:08]} Bxc4 {[%emt 0:00:30]} 23. Rhd1 {[%emt 0:02:56]} g4 {[%emt 0:09:08]} 24. hxg4 {[%emt 0:02:16]} hxg4 {[%emt 0:00:28]} 25. f3 {[%emt 0:02:35]} axb4 {[%emt 0:02:19]} 26. axb4 {[%emt 0:01:53]} gxf3 {[%emt 0:03:58]} 27. gxf3 {[%emt 0:00:36]} Rh8 {[%emt 0:01:41]} 28. Rg1 {[%emt 0:09:03]} Rh2 {[%emt 0:03:18]} 29. Rh1 {[%emt 0:01:33]} Bxb4 {[%emt 0:03:36]} 30. Kd2 {[%emt 0:00:56]} Bxe2 {[%emt 0:00:48]} 0-1

[Event "22nd ECCC Women 2017"]
[Site "Antalya"]
[Date "2017.10.09"]
[Round "1"]
[White "Sade, Defne"]
[Black "Stetsko, Lanita"]
[Result "0-1"]
[ECO "C90"]
[WhiteElo "1951"]
[BlackElo "2254"]
[Annotator "ChessBase"]
[PlyCount "118"]
[EventType "team-tourn"]
[EventCountry "TUR"]
[WhiteTeam "Aegean"]
[BlackTeam "Bossa Nova"]
[TimeControl "40/5400+30:1800+30"]

1. e4 {[%emt 0:00:30]} e5 {[%emt 0:01:00]} 2. Nf3 {[%emt 0:00:30]} Nc6 {[%emt 0:00:30]} 3. Bb5 {[%emt 0:00:30]} a6 {[%emt 0:00:00]} 4. Ba4 {[%emt 0:00:00]} Nf6 {[%emt 0:00:00]} 5. O-O {[%emt 0:00:00]} Be7 {[%emt 0:00:00]} 6. Re1 {[%emt 0:00:00]} b5 {[%emt 0:00:00]} 7. Bb3 {[%emt 0:00:00]} d6 {[%emt 0:00:30]} 8. a3 {[%emt 0:01:30]} Bg4 {[%emt 0:07:30]} 9. c3 {[%emt 0:01:30]} Na5 {[%emt 0:12:30]} 10. Ba2 {[%emt 0:02:30]} c5 {[%emt 0:00:30]} 11. b4 {[%emt 0:04:30]} Nc6 {[%emt 0:03:30]} 12. d3 {[%emt 0:02:30]} O-O {[%emt 0:02:30]} 13. Nbd2 {[%emt 0:00:00]} Qc8 {[%emt 0:16:30]} 14. Nf1 {[%emt 0:07:00]} Be6 {[%emt 0:05:30]} 15. Ne3 {[%emt 0:06:30]} Bxa2 {[%emt 0:04:30]} 16. Rxa2 {[%emt 0:00:30]} Qe6 {[%emt 0:00:00]} 17. Ra1 {[%emt 0:01:30]} g6 {[%emt 0:14:00]} 18. Ng5 {[%emt 0:08:30]} Qd7 {[%emt 0:05:30]} 19. Nd5 {[%emt 0:19:30]} Nxd5 {[%emt 0:03:30]} 20. exd5 {[%emt 0:00:00]} Nd8 {[%emt 0:00:00]} 21. bxc5 {[%emt 0:09:00]} dxc5 {[%emt 0:01:00]} 22. Qf3 {[%emt 0:01:30]} Rb8 {[%emt 0:07:49]} 23. Qg3 {[%emt 0:11:30]} f6 {[%emt 0:02:00]} 24. Qh3 {[%emt 0:08:12]} Qxh3 {[%emt 0:00:37]} 25. Nxh3 {[%emt 0:00:04]} Nb7 {[%emt 0:04:21]} 26. c4 {[%emt 0:02:48]} bxc4 {[%emt 0:00:47]} 27. dxc4 {[%emt 0:00:07]} Nd6 {[%emt 0:01:02]} 28. Bh6 {[%emt 0:01:02]} Rfe8 {[%emt 0:00:12]} 29. Be3 {[%emt 0:10:53]} Nxc4 {[%emt 0:00:28]} 30. Rac1 {[%emt 0:01:31]} Nxe3 {[%emt 0:05:29]} 31. fxe3 {[%emt 0:00:07]} Rb3 {[%emt 0:00:20]} 32. Nf2 {[%emt 0:00:16]} Rd8 {[%emt 0:01:23]} 33. d6 {[%emt 0:01:03]} Bxd6 {[%emt 0:02:33]} 34. Ne4 {[%emt 0:00:05]} Be7 {[%emt 0:00:00]} 35. Nxc5 {[%emt 0:00:28]} Rxa3 {[%emt 0:01:00]} 36. Ne4 {[%emt 0:00:51]} Ra4 {[%emt 0:00:23]} 37. Rc7 {[%emt 0:00:35]} Kf7 {[%emt 0:00:30]} 38. Nc3 {[%emt 0:00:40]} Rb4 {[%emt 0:00:46]} 39. e4 {[%emt 0:00:14]} Rbd4 {[%emt 0:01:09]} 40. Nd5 {[%emt 0:00:00]} R4xd5 {[%emt 0:00:41]} 41. exd5 {[%emt 0:01:04]} Rxd5 {[%emt 0:00:00]} 42. Rb1 {[%emt 0:01:30]} e4 {[%emt 0:06:00]} 43. Rbb7 {[%emt 0:02:30]} Re5 {[%emt 0:00:30]} 44. Kf2 {[%emt 0:00:30]} a5 {[%emt 0:00:30]} 45. Ke3 {[%emt 0:01:30]} f5 {[%emt 0:02:30]} 46. Ra7 {[%emt 0:03:30]} Kf6 {[%emt 0:03:30]} 47. Rc6+ {[%emt 0:00:30]} Kg5 {[%emt 0:06:20]} 48. Kd4 {[%emt 0:02:30]} Bf6 {[%emt 0:00:27]} 49. h4+ {[%emt 0:00:30]} Kf4 {[%emt 0:02:03]} 50. Rxf6 {[%emt 0:00:30]} e3 {[%emt 0:00:12]} 51. g3+ {[%emt 0:10:06]} Kxg3 {[%emt 0:00:50]} 52. Kxe5 {[%emt 0:01:05]} e2 {[%emt 0:00:06]} 53. Rxh7 {[%emt 0:02:07]} e1=Q+ {[%emt 0:00:06]} 54. Kd5 {[%emt 0:00:00]} Qe4+ {[%emt 0:02:37]} 55. Kd6 {[%emt 0:00:12]} Qd4+ {[%emt 0:01:16]} 56. Ke6 {[%emt 0:00:20]} Qc4+ {[%emt 0:00:06]} 57. Kd6 {[%emt 0:00:48]} Kf4 {[%emt 0:02:04]} 58. Rc7 {[%emt 0:01:36]} Qd4+ {[%emt 0:00:28]} 59. Ke7 {[%emt 0:01:45]} Qe5+ {[%emt 0:00:05]} 0-1

[Event "22nd ECCC Women 2017"]
[Site "Antalya"]
[Date "2017.10.09"]
[Round "1"]
[White "Ayan, Bengu Sena"]
[Black "Badelka, Olga"]
[Result "0-1"]
[ECO "D25"]
[WhiteElo "1888"]
[BlackElo "2353"]
[Annotator "ChessBase"]
[PlyCount "64"]
[EventType "team-tourn"]
[EventCountry "TUR"]
[WhiteTeam "Aegean"]
[BlackTeam "Bossa Nova"]
[TimeControl "40/5400+30:1800+30"]

1. d4 {[%emt 0:00:30]} d5 {[%emt 0:01:00]} 2. Nf3 {[%emt 0:00:30]} Nf6 {[%emt 0:00:30]} 3. c4 {[%emt 0:00:30]} dxc4 {[%emt 0:00:30]} 4. e3 {[%emt 0:00:00]} b5 {[%emt 0:00:00]} 5. a4 {[%emt 0:00:00]} b4 {[%emt 0:00:00]} 6. Bxc4 {[%emt 0:00:00]} e6 {[%emt 0:00:00]} 7. O-O {[%emt 0:00:00]} Bb7 {[%emt 0:00:00]} 8. a5 {[%emt 0:01:30]} Be7 {[%emt 0:05:30]} 9. Nbd2 {[%emt 0:07:30]} O-O {[%emt 0:01:30]} 10. a6 {[%emt 0:04:30]} Bd5 {[%emt 0:00:30]} 11. Qc2 {[%emt 0:05:30]} Nbd7 {[%emt 0:06:30]} 12. Bd3 {[%emt 0:11:30]} Bxf3 {[%emt 0:00:30]} 13. Nxf3 {[%emt 0:00:30]} c5 {[%emt 0:00:30]} 14. b3 {[%emt 0:05:30]} Rc8 {[%emt 0:01:30]} 15. Qe2 {[%emt 0:01:30]} cxd4 {[%emt 0:05:30]} 16. Nxd4 {[%emt 0:03:30]} Nc5 {[%emt 0:02:30]} 17. Bc4 {[%emt 0:02:30]} Nfe4 {[%emt 0:01:30]} 18. Bb2 {[%emt 0:02:30]} Bf6 {[%emt 0:00:30]} 19. Rfd1 {[%emt 0:09:30]} Qb6 {[%emt 0:00:30]} 20. Rac1 {[%emt 0:04:30]} Rfd8 {[%emt 0:05:30]} 21. Qg4 {[%emt 0:06:30]} g6 {[%emt 0:14:30]} 22. Ba1 {[%emt 0:11:30]} Bg7 {[%emt 0:01:30]} 23. Qe2 {[%emt 0:05:17]} Nd6 {[%emt 0:03:30]} 24. Nf3 {[%emt 0:07:59]} Bxa1 {[%emt 0:06:30]} 25. Rxa1 {[%emt 0:00:11]} Nce4 {[%emt 0:05:30]} 26. Rd4 {[%emt 0:02:22]} Nc3 {[%emt 0:00:00]} 27. Qd3 {[%emt 0:02:09]} Nxc4 {[%emt 0:02:00]} 28. bxc4 {[%emt 0:00:57]} Qc7 {[%emt 0:01:30]} 29. c5 {[%emt 0:02:54]} Rd5 {[%emt 0:00:30]} 30. Qc4 {[%emt 0:01:12]} Rxc5 {[%emt 0:00:30]} 31. Qf1 {[%emt 0:01:26]} b3 {[%emt 0:02:30]} 32. Rb4 {[%emt 0:00:40]} Rb8 {[%emt 0:00:00]} 0-1